fUSD/lending_fUSD_20240419
["ID","MTS","AMOUNT","RATE_DAILY","PERIOD"]
[322909603,1713493845404,-500.0,0.00016438,2]
[322909606,1713493845414,-2598.1,0.00016438,2]
[322909609,1713493845423,-500.0,0.00016438,2]
[322909612,1713493845433,-5659.84,0.00016438,2]
[322909615,1713493845442,-500.0,0.00016438,2]
[322909617,1713493845451,-369.77643575,0.00016438,2]
[322909620,1713493845460,-500.0,0.00016438,2]
[322909623,1713493845470,-500.0,0.00016438,2]
[322909627,1713493845479,-500.0,0.00016438,2]
[322909629,1713493845488,-500.0,0.00016438,2]
[322909632,1713493845497,-500.0,0.00016438,2]
[322909635,1713493845506,-500.0,0.00016438,2]
[322909637,1713493845515,-4277.71,0.00016438,2]
[322909639,1713493845525,-2220.94,0.00016438,2]
[322909641,1713493845534,-500.0,0.00016438,2]
[322909644,1713493845543,-1296.68,0.00016438,2]
[322909647,1713493845552,-500.0,0.00016438,2]
[322909650,1713493845567,-532.63,0.00016438,2]
[322909653,1713493845576,-500.0,0.00016438,2]
[322909656,1713493845585,-500.0,0.00016438,2]
[322909659,1713493845594,-500.0,0.00016438,2]
[322909662,1713493845604,-517.35289031,0.00016438,2]
[322909665,1713493845613,-2095.57,0.00016438,2]
[322909668,1713493845622,-578.57,0.00016438,2]
[322909671,1713493845633,-707.68,0.00016438,2]
[322909674,1713493845642,-5636.81,0.00016438,2]
[322909676,1713493845651,-500.0,0.00016438,2]
[322909678,1713493845660,-500.0,0.00016438,2]
[322909680,1713493845669,-2972.01,0.00016438,2]
[322909682,1713493845678,-500.0,0.00016438,2]
[322909685,1713493845687,-500.0,0.00016438,2]
[322909688,1713493845696,-500.0,0.00016438,2]
[322909691,1713493845705,-854.12,0.00016438,2]
[322909694,1713493845715,-500.0,0.00016438,2]
[322909697,1713493845724,-500.0,0.00016438,2]
[322909700,1713493845734,-500.0,0.00016438,2]
[322909703,1713493845743,-505.22,0.00016438,2]
[322909706,1713493845752,-500.0,0.00016438,2]
[322909709,1713493845761,-524.18,0.00016438,2]
[322909712,1713493845771,-644.33,0.00016438,2]
[322909715,1713493845780,-2916.46,0.00016438,2]
[322909718,1713493845789,-5096.59,0.00016438,2]
[322909720,1713493845798,-500.0,0.00016438,2]
[322909721,1713493845810,-500.0,0.00016438,2]
[322909723,1713493845819,-500.0,0.00016438,2]
[322909725,1713493845829,-1664.34,0.00016438,2]
[322909727,1713493845839,-1710.35,0.00016438,2]
[322909730,1713493845849,-3291.93,0.00016438,2]
[322909731,1713493845858,-1004.83,0.00016438,2]
[322909733,1713493845868,-4144.81,0.00016438,2]
[322909736,1713493845877,-500.0,0.00016438,2]
[322909738,1713493845887,-2023.49,0.00016438,2]
[322909739,1713493845896,-500.0,0.00016438,2]
[322909741,1713493845905,-500.0,0.00016438,2]
[322909743,1713493845914,-1906.53,0.00016438,2]
[322909745,1713493845923,-500.0,0.00016438,2]
[322909747,1713493845934,-2391.23,0.00016438,2]
[322909750,1713493845943,-1501.99,0.00016438,2]
[322909752,1713493845955,-500.0,0.00016438,2]
[322909753,1713493845964,-3322.0,0.00016438,2]
[322909754,1713493845973,-500.0,0.00016438,2]
[322909755,1713493845982,-2034.15,0.00016438,2]
[322909756,1713493845991,-500.0,0.00016438,2]
[322909757,1713493846000,-655.85,0.00016438,2]
[322909758,1713493846009,-4474.19,0.00016438,2]
[322909759,1713493846018,-500.0,0.00016438,2]
[322909760,1713493846029,-2063.11,0.00016438,2]
[322909762,1713493846038,-500.0,0.00016438,2]
[322909764,1713493846047,-500.0,0.00016438,2]
[322909766,1713493846060,-2864.03,0.00016438,2]
[322909768,1713493846070,-738.69,0.00016438,2]
[322909770,1713493846079,-500.0,0.00016438,2]
[322909772,1713493846088,-500.0,0.00016438,2]
[322909774,1713493846097,-500.0,0.00016438,2]
[322909776,1713493846106,-500.0,0.00016438,2]
[322909778,1713493846115,-1078.6,0.00016438,2]
[322909780,1713493846125,-500.0,0.00016438,2]
[322909782,1713493846134,-500.0,0.00016438,2]
[322909784,1713493846143,-1400.79,0.00016438,2]
[322909786,1713493846153,-500.0,0.00016438,2]
[322909788,1713493846164,-500.0,0.00016438,2]
[322909790,1713493846173,-500.0,0.00016438,2]
[322909792,1713493846183,-5156.54,0.00016438,2]
[322909794,1713493846192,-5610.21,0.00016438,2]
[322909796,1713493846202,-4197.22,0.00016438,2]
[322909798,1713493846212,-500.0,0.00016438,2]
[322909800,1713493846222,-1549.35,0.00016438,2]
[322909802,1713493846232,-500.0,0.00016438,2]
[322909804,1713493846243,-4929.17,0.00016438,2]
[322909806,1713493846253,-500.0,0.00016438,2]
[322909808,1713493846265,-2430.43,0.00016438,2]
[322909810,1713493846276,-500.0,0.00016438,2]
[322909812,1713493846287,-1877.66,0.00016438,2]
[322909814,1713493846297,-1076.77,0.00016438,2]
[322909816,1713493846312,-500.0,0.00016438,2]
[322909818,1713493846322,-4304.99,0.00016438,2]
[322909820,1713493846332,-500.0,0.00016438,2]
[322909822,1713493846341,-1171.14,0.00016438,2]
[322909823,1713493846351,-500.0,0.00016438,2]
[322909825,1713493846361,-500.0,0.00016438,2]
[322909827,1713493846370,-2248.56,0.00016438,2]
[322909829,1713493846381,-500.0,0.00016438,2]
[322909831,1713493846391,-500.0,0.00016438,2]
[322909834,1713493846401,-6087.48,0.00016438,2]
[322909836,1713493846411,-500.0,0.00016438,2]
[322909838,1713493846422,-561.59,0.00016438,2]
[322909840,1713493846431,-500.0,0.00016438,2]
[322909842,1713493846441,-500.0,0.00016438,2]
[322909843,1713493846451,-500.0,0.00016438,2]
[322909845,1713493846460,-500.0,0.00016438,2]
[322909847,1713493846470,-661.16,0.00016438,2]
[322909849,1713493846480,-500.0,0.00016438,2]
[322909851,1713493846490,-591.88,0.00016438,2]
[322909853,1713493846499,-500.0,0.00016438,2]
[322909856,1713493846509,-500.0,0.00016438,2]
[322909858,1713493846518,-500.0,0.00016438,2]
[322909860,1713493846527,-500.0,0.00016438,2]
[322909862,1713493846537,-500.0,0.00016438,2]
[322909863,1713493846547,-4546.23,0.00016438,2]
[322909866,1713493846562,-1426.23,0.00016438,2]
[322909868,1713493846571,-1692.08,0.00016438,2]
[322909870,1713493846581,-955.82,0.00016438,2]
[322909871,1713493846591,-3531.14,0.00016438,2]
[322909873,1713493846601,-4728.95,0.00016438,2]
[322909875,1713493846611,-606.98,0.00016438,2]
[322909877,1713493846621,-367.71400079,0.00016438,2]
[322909880,1713493846631,-500.0,0.00016438,2]
[322909882,1713493846641,-500.0,0.00016438,2]
[322909883,1713493846650,-622.08,0.00016438,2]
[322909886,1713493846659,-931.43,0.00016438,2]
[322909888,1713493846669,-500.0,0.00016438,2]
[322909890,1713493846681,-500.0,0.00016438,2]
[322909892,1713493846691,-500.0,0.00016438,2]
[322909894,1713493846701,-715.23,0.00016438,2]
[322909896,1713493846714,-519.43709655,0.00016438,2]
[322909898,1713493846723,-1657.86,0.00016438,2]
[322909900,1713493846733,-4005.28,0.00016438,2]
[322909902,1713493846743,-1630.81,0.00016438,2]
[322909904,1713493846752,-500.0,0.00016438,2]
[322909905,1713493846762,-500.0,0.00016438,2]
[322909908,1713493846772,-1696.98,0.00016438,2]
[322909910,1713493846781,-1156.98,0.00016438,2]
[322909911,1713493846790,-500.0,0.00016438,2]
[322909914,1713493846800,-3787.42,0.00016438,2]
[322909916,1713493846814,-1244.78,0.00016438,2]
[322909918,1713493846823,-954.63,0.00016438,2]
[322909919,1713493846833,-500.0,0.00016438,2]
[322909921,1713493846842,-726.94,0.00016438,2]
[322909924,1713493846852,-500.0,0.00016438,2]
[322909925,1713493846862,-767.47,0.00016438,2]
[322909927,1713493846871,-791.81,0.00016438,2]
[322909929,1713493846881,-500.0,0.00016438,2]
[322909931,1713493846891,-1334.2,0.00016438,2]
[322909934,1713493846903,-2575.03,0.00016438,2]
[322909935,1713493846913,-1908.18,0.00016438,2]
[322909938,1713493846924,-500.0,0.00016438,2]
[322909940,1713493846934,-500.0,0.00016438,2]
[322909941,1713493846944,-2833.75,0.00016438,2]
[322909944,1713493846954,-500.0,0.00016438,2]
[322909946,1713493846965,-500.0,0.00016438,2]
[322909948,1713493846974,-2695.37,0.00016438,2]
[322909950,1713493846985,-521.05,0.00016438,2]
[322909952,1713493846995,-500.0,0.00016438,2]
[322909954,1713493847006,-1610.2,0.00016438,2]
[322909956,1713493847017,-500.0,0.00016438,2]
[322909958,1713493847027,-1923.6,0.00016438,2]
[322909960,1713493847037,-2121.36,0.00016438,2]
[322909962,1713493847047,-500.0,0.00016438,2]
[322909964,1713493847060,-788.88,0.00016438,2]
[322909966,1713493847070,-500.0,0.00016438,2]
[322909968,1713493847080,-500.0,0.00016438,2]
[322909970,1713493847090,-500.0,0.00016438,2]
[322909972,1713493847101,-500.0,0.00016438,2]
[322909974,1713493847111,-2010.75,0.00016438,2]
[322909976,1713493847121,-500.0,0.00016438,2]
[322909978,1713493847131,-2043.95,0.00016438,2]
[322909980,1713493847141,-500.0,0.00016438,2]
[322909982,1713493847150,-500.0,0.00016438,2]
[322909984,1713493847160,-500.0,0.00016438,2]
[322909986,1713493847169,-3208.67,0.00016438,2]
[322909988,1713493847179,-2153.87,0.00016438,2]
[322909990,1713493847189,-3024.97,0.00016438,2]
[322909992,1713493847199,-2875.18,0.00016438,2]
[322909994,1713493847210,-1470.08,0.00016438,2]
[322909996,1713493847220,-1659.79,0.00016438,2]
[322909998,1713493847231,-500.0,0.00016438,2]
[322910000,1713493847241,-2855.64,0.00016438,2]
[322910002,1713493847251,-1354.5,0.00016438,2]
[322910004,1713493847261,-500.0,0.00016438,2]
[322910006,1713493847270,-500.0,0.00016438,2]
[322910008,1713493847280,-1851.96,0.00016438,2]
[322910010,1713493847290,-2937.09,0.00016438,2]
[322910012,1713493847300,-626.03,0.00016438,2]
[322910014,1713493847315,-500.0,0.00016438,2]
[322910016,1713493847325,-500.0,0.00016438,2]
[322910018,1713493847334,-4289.06,0.00016438,2]
[322910019,1713493847344,-3153.98,0.00016438,2]
[322910020,1713493847353,-1064.25,0.00016438,2]
[322910021,1713493847363,-500.0,0.00016438,2]
[322910022,1713493847372,-2711.01,0.00016438,2]
[322910023,1713493847382,-679.2,0.00016438,2]
[322910024,1713493847391,-1430.99,0.00016438,2]
[322910025,1713493847401,-1012.49,0.00016438,2]
[322910027,1713493847411,-500.0,0.00016438,2]
[322910029,1713493847421,-1011.45,0.00016438,2]
[322910031,1713493847431,-4314.24,0.00016438,2]
[322910033,1713493847440,-500.0,0.00016438,2]
[322910035,1713493847450,-500.0,0.00016438,2]
[322910037,1713493847459,-7280.55,0.00016438,2]
[322910038,1713493847468,-1264.98,0.00016438,2]
[322910040,1713493847478,-4118.16,0.00016438,2]
[322910042,1713493847488,-500.0,0.00016438,2]
[322910044,1713493847498,-500.0,0.00016438,2]
[322910046,1713493847507,-500.0,0.00016438,2]
[322910048,1713493847517,-609.79,0.00016438,2]
[322910050,1713493847526,-500.0,0.00016438,2]
[322910052,1713493847536,-607.17,0.00016438,2]
[322910055,1713493847545,-642.79063882,0.00016438,2]
[322910056,1713493847554,-503.15064577,0.00016438,2]
[322910059,1713493847572,-830.38,0.00016438,2]
[322910061,1713493847581,-4073.5,0.00016438,2]
[322910062,1713493847590,-500.0,0.00016438,2]
[322910064,1713493847600,-500.0,0.00016438,2]
[322910066,1713493847610,-500.0,0.00016438,2]
[322910068,1713493847619,-1043.21,0.00016438,2]
[322910071,1713493847629,-500.0,0.00016438,2]
[322910072,1713493847639,-588.11,0.00016438,2]
[322910074,1713493847649,-500.0,0.00016438,2]
[322910076,1713493847657,-500.0,0.00016438,2]
[322910078,1713493847666,-500.0,0.00016438,2]
[322910080,1713493847676,-1136.28,0.00016438,2]
[322910082,1713493847685,-500.0,0.00016438,2]
[322910084,1713493847695,-500.0,0.00016438,2]
[322910087,1713493847706,-500.0,0.00016438,2]
[322910089,1713493847717,-624.64032249,0.00016438,2]
[322910091,1713493847726,-5648.63,0.00016438,2]
[322910093,1713493847735,-508.37514213,0.00016438,2]
[322910095,1713493847744,-500.0,0.00016438,2]
[322910097,1713493847753,-2566.15,0.00016438,2]
[322910099,1713493847763,-2011.86,0.00016438,2]
[322910101,1713493847772,-2870.21,0.00016438,2]
[322910103,1713493847781,-500.0,0.00016438,2]
[322910105,1713493847790,-500.0,0.00016438,2]
[322910106,1713493847799,-1156.56,0.00016438,2]
[322910109,1713493847815,-2419.51,0.00016438,2]
[322910111,1713493847824,-647.91,0.00016438,2]
[322910113,1713493847834,-531.27789739,0.00016438,2]
[322910115,1713493847843,-649.43,0.00016438,2]
[322910117,1713493847853,-500.0,0.00016438,2]
[322910119,1713493847862,-500.0,0.00016438,2]
[322910121,1713493847871,-613.40074647,0.00016438,2]
[322910123,1713493847881,-500.0,0.00016438,2]
[322910125,1713493847890,-500.0,0.00016438,2]
[322910127,1713493847899,-730.96,0.00016438,2]
[322910129,1713493847909,-500.0,0.00016438,2]
[322910131,1713493847918,-500.0,0.00016438,2]
[322910133,1713493847927,-500.0,0.00016438,2]
[322910135,1713493847936,-500.0,0.00016438,2]
[322910137,1713493847945,-1300.03,0.00016438,2]
[322910138,1713493847955,-998.45,0.00016438,2]
[322910140,1713493847963,-185.68371495,0.00016438,2]
[322910142,1713493847973,-1953.47,0.00016438,2]
[322910144,1713493847982,-500.0,0.00016438,2]
[322910146,1713493847991,-500.0,0.00016438,2]
[322910148,1713493848001,-3062.08,0.00016438,2]
[322910151,1713493848011,-500.0,0.00016438,2]
[322910153,1713493848021,-500.0,0.00016438,2]
[322910154,1713493848030,-578.12,0.00016438,2]
[322910157,1713493848040,-500.0,0.00016438,2]
[322910159,1713493848049,-977.94,0.00016438,2]
[322910160,1713493848064,-500.0,0.00016438,2]
[322910162,1713493848074,-3605.5,0.00016438,2]
[322910164,1713493848083,-1989.64,0.00016438,2]
[322910166,1713493848092,-1702.91,0.00016438,2]
[322910168,1713493848101,-500.0,0.00016438,2]
[322910170,1713493848110,-500.0,0.00016438,2]
[322910172,1713493848120,-543.21,0.00016438,2]
[322910174,1713493848129,-500.0,0.00016438,2]
[322910176,1713493848138,-1557.29,0.00016438,2]
[322910179,1713493848148,-500.0,0.00016438,2]
[322910181,1713493848158,-1578.58,0.00016438,2]
[322910183,1713493848168,-1518.22,0.00016438,2]
[322910185,1713493848178,-952.02,0.00016438,2]
[322910187,1713493848187,-2744.95,0.00016438,2]
[322910189,1713493848197,-827.81,0.00016438,2]
[322910191,1713493848206,-500.0,0.00016438,2]
[322910193,1713493848216,-641.86,0.00016438,2]
[322910195,1713493848226,-500.0,0.00016438,2]
[322910197,1713493848236,-6023.45,0.00016438,2]
[322910199,1713493848246,-886.5,0.00016438,2]
[322910201,1713493848255,-500.0,0.00016438,2]
[322910203,1713493848264,-2542.59,0.00016438,2]
[322910205,1713493848274,-500.0,0.00016438,2]
[322910207,1713493848284,-500.0,0.00016438,2]
[322910209,1713493848294,-500.0,0.00016438,2]
[322910211,1713493848303,-500.0,0.00016438,2]
[322910213,1713493848318,-521.92193059,0.00016438,2]
[322910215,1713493848328,-500.0,0.00016438,2]
[322910217,1713493848338,-1190.31,0.00016438,2]
[322910219,1713493848347,-500.0,0.00016438,2]
[322910222,1713493848357,-500.0,0.00016438,2]
[322910224,1713493848367,-2343.03,0.00016438,2]
[322910226,1713493848377,-500.0,0.00016438,2]
[322910228,1713493848388,-500.0,0.00016438,2]
[322910230,1713493848397,-500.0,0.00016438,2]
[322910232,1713493848407,-1246.07,0.00016438,2]
[322910234,1713493848418,-1083.17,0.00016438,2]
[322910236,1713493848427,-557.42,0.00016438,2]
[322910238,1713493848437,-500.0,0.00016438,2]
[322910240,1713493848447,-500.0,0.00016438,2]
[322910242,1713493848457,-500.0,0.00016438,2]
[322910244,1713493848467,-500.0,0.00016438,2]
[322910246,1713493848477,-500.0,0.00016438,2]
[322910248,1713493848487,-568.97,0.00016438,2]
[322910250,1713493848497,-2740.65,0.00016438,2]
[322910252,1713493848507,-547.0299458,0.00016438,2]
[322910254,1713493848516,-1205.96,0.00016438,2]
[322910256,1713493848526,-595.97,0.00016438,2]
[322910258,1713493848536,-500.0,0.00016438,2]
[322910260,1713493848545,-563.91,0.00016438,2]
[322910262,1713493848555,-500.0,0.00016438,2]
[322910263,1713493848570,-1858.76,0.00016438,2]
[322910264,1713493848580,-1113.55,0.00016438,2]
[322910265,1713493848590,-924.67,0.00016438,2]
[322910266,1713493848600,-730.99,0.00016438,2]
[322910267,1713493848612,-500.0,0.00016438,2]
[322910269,1713493848622,-500.0,0.00016438,2]
[322910271,1713493848632,-746.06,0.00016438,2]
[322910273,1713493848642,-1036.78,0.00016438,2]
[322910275,1713493848652,-1036.78,0.00016438,2]
[322910277,1713493848661,-806.86,0.00016438,2]
[322910279,1713493848671,-1738.46,0.00016438,2]
[322910281,1713493848680,-1036.78,0.00016438,2]
[322910283,1713493848694,-500.0,0.00016438,2]
[322910285,1713493848705,-1371.88,0.00016438,2]
[322910287,1713493848715,-500.0,0.00016438,2]
[322910289,1713493848725,-500.0,0.00016438,2]
[322910291,1713493848735,-3496.4,0.00016438,2]
[322910293,1713493848745,-500.0,0.00016438,2]
[322910295,1713493848755,-776.66,0.00016438,2]
[322910297,1713493848765,-500.0,0.00016438,2]
[322910300,1713493848775,-776.66,0.00016438,2]
[322910302,1713493848785,-1349.69,0.00016438,2]
[322910304,1713493848795,-776.66,0.00016438,2]
[322910305,1713493848805,-776.66,0.00016438,2]
[322910308,1713493848819,-776.66,0.00016438,2]
[322910310,1713493848829,-1169.46,0.00016438,2]
[322910312,1713493848840,-776.66,0.00016438,2]
[322910314,1713493848851,-776.66,0.00016438,2]
[322910316,1713493848861,-643.42,0.00016438,2]
[322910318,1713493848871,-776.66,0.00016438,2]
[322910320,1713493848881,-500.0,0.00016438,2]
[322910322,1713493848891,-776.66,0.00016438,2]
[322910324,1713493848900,-776.66,0.00016438,2]
[322910326,1713493848911,-776.66,0.00016438,2]
[322910328,1713493848921,-776.66,0.00016438,2]
[322910331,1713493848931,-776.66,0.00016438,2]
[322910333,1713493848941,-507.71768919,0.00016438,2]
[322910335,1713493848951,-500.0,0.00016438,2]
[322910337,1713493848960,-500.0,0.00016438,2]
[322910339,1713493848969,-500.0,0.00016438,2]
[322910341,1713493848979,-892.51,0.00016438,2]
[322910343,1713493848989,-500.0,0.00016438,2]
[322910345,1713493848999,-1036.78,0.00016438,2]
[322910347,1713493849008,-500.0,0.00016438,2]
[322910349,1713493849017,-3227.16,0.00016438,2]
[322910351,1713493849027,-1036.78,0.00016438,2]
[322910353,1713493849036,-1036.78,0.00016438,2]
[322910355,1713493849046,-1322.17,0.00016438,2]
[322910357,1713493849055,-500.0,0.00016438,2]
[322910359,1713493849070,-1036.78,0.00016438,2]
[322910362,1713493849080,-1375.81,0.00016438,2]
[322910364,1713493849090,-1630.83,0.00016438,2]
[322910366,1713493849099,-2469.35,0.00016438,2]
[322910368,1713493849109,-1036.78,0.00016438,2]
[322910370,1713493849119,-1036.78,0.00016438,2]
[322910372,1713493849129,-500.0,0.00016438,2]
[322910374,1713493849138,-1036.78,0.00016438,2]
[322910376,1713493849147,-524.30314181,0.00016438,2]
[322910378,1713493849157,-1036.78,0.00016438,2]
[322910380,1713493849167,-1036.78,0.00016438,2]
[322910382,1713493849176,-500.0,0.00016438,2]
[322910384,1713493849186,-883.38,0.00016438,2]
[322910386,1713493849196,-1036.78,0.00016438,2]
[322910388,1713493849205,-980.46,0.00016438,2]
[322910390,1713493849216,-795.75,0.00016438,2]
[322910393,1713493849226,-4834.51,0.00016438,2]
[322910394,1713493849237,-500.0,0.00016438,2]
[322910396,1713493849247,-500.0,0.00016438,2]
[322910399,1713493849257,-500.0,0.00016438,2]
[322910401,1713493849267,-500.0,0.00016438,2]
[322910403,1713493849277,-473.05916633,0.00016438,2]
[322910405,1713493849287,-2210.77,0.00016438,2]
[322910407,1713493849298,-1979.34,0.00016438,2]
[322910409,1713493849312,-500.0,0.00016438,2]
[322910411,1713493849325,-500.0,0.00016438,2]
[322910413,1713493849336,-500.0,0.00016438,2]
[322910415,1713493849347,-500.0,0.00016438,2]
[322910417,1713493849357,-500.0,0.00016438,2]
[322910420,1713493849368,-2491.5,0.00016438,2]
[322910422,1713493849378,-500.0,0.00016438,2]
[322910424,1713493849389,-1534.32,0.00016438,2]
[322910426,1713493849399,-563.14,0.00016438,2]
[322910428,1713493849409,-500.0,0.00016438,2]
[322910430,1713493849420,-1427.95,0.00016438,2]
[322910432,1713493849430,-7080.98,0.00016438,2]
[322910434,1713493849441,-500.0,0.00016438,2]
[322910436,1713493849452,-500.0,0.00016438,2]
[322910438,1713493849463,-1492.75,0.00016438,2]
[322910441,1713493849473,-2479.96,0.00016438,2]
[322910443,1713493849484,-500.0,0.00016438,2]
[322910445,1713493849495,-647.49,0.00016438,2]
[322910447,1713493849505,-681.46,0.00016438,2]
[322910449,1713493849515,-1456.79,0.00016438,2]
[322910451,1713493849526,-187.32524526,0.00016438,2]
[322910553,1713493850840,-1405.31475474,0.00016438,2]
[322910555,1713493850851,-500.0,0.00016438,2]
[322910556,1713493850862,-500.0,0.00016438,2]
[322910558,1713493850872,-219.26141081,0.00016438,2]
[322910560,1713493850882,-500.0,0.00016438,2]
[322910561,1713493850891,-514.01,0.00016438,2]
[322910563,1713493850901,-500.0,0.00016438,2]
[322910565,1713493850911,-2752.75,0.00016438,2]
[322910566,1713493850921,-879.82,0.00016438,2]
[322910568,1713493850932,-500.0,0.00016438,2]
[322910570,1713493850944,-707.44,0.00016438,2]
[322910571,1713493850955,-3066.32,0.00016438,2]
[322910573,1713493850965,-500.0,0.00016438,2]
[322910575,1713493850975,-500.0,0.00016438,2]
[322910576,1713493850985,-983.23,0.00016438,2]
[322910578,1713493850994,-500.0,0.00016438,2]
[322910580,1713493851005,-974.78,0.00016438,2]
[322910581,1713493851015,-747.13,0.00016438,2]
[322910583,1713493851025,-1095.09,0.00016438,2]
[322910584,1713493851035,-500.0,0.00016438,2]
[322910586,1713493851046,-500.0,0.00016438,2]
[322910588,1713493851056,-1085.85,0.00016438,2]
[322910589,1713493851071,-500.0,0.00016438,2]
[322910591,1713493851081,-1080.02,0.00016438,2]
[322910592,1713493851090,-540.74013701,0.00016438,2]
[322910593,1713493851100,-1226.22,0.00016438,2]
[322910594,1713493851110,-328.97007856,0.00016438,2]
[322910595,1713493851119,-500.0,0.00016438,2]
[322910596,1713493851129,-500.0,0.00016438,2]
[322910597,1713493851139,-500.0,0.00016438,2]
[322910598,1713493851148,-500.0,0.00016438,2]
[322910599,1713493851159,-501.01566702,0.00016438,2]
[322910600,1713493851169,-500.0,0.00016438,2]
[322910601,1713493851178,-3096.82,0.00016438,2]
[322910603,1713493851189,-500.0,0.00016438,2]
[322910604,1713493851198,-3818.09,0.00016438,2]
[322910606,1713493851208,-1154.71,0.00016438,2]
[322910608,1713493851218,-500.0,0.00016438,2]
[322910610,1713493851227,-500.0,0.00016438,2]
[322910612,1713493851237,-833.15,0.00016438,2]
[322910614,1713493851246,-500.0,0.00016438,2]
[322910616,1713493851257,-500.0,0.00016438,2]
[322910618,1713493851267,-500.0,0.00016438,2]
[322910620,1713493851277,-500.0,0.00016438,2]
[322910622,1713493851286,-1392.54,0.00016438,2]
[322910624,1713493851295,-500.0,0.00016438,2]
[322910626,1713493851305,-3404.94,0.00016438,2]
[322910628,1713493851320,-2803.57,0.00016438,2]
[322910631,1713493851330,-500.0,0.00016438,2]
[322910633,1713493851340,-500.0,0.00016438,2]
[322910635,1713493851350,-2763.99,0.00016438,2]
[322910637,1713493851361,-1256.91,0.00016438,2]
[322910639,1713493851370,-284.0,0.00016438,2]
[322910641,1713493851380,-500.0,0.00016438,2]
[322910643,1713493851389,-500.0,0.00016438,2]
[322910644,1713493851398,-500.0,0.00016438,2]
[322910647,1713493851410,-184.78389455,0.00016438,2]
[322910648,1713493851420,-1250.47,0.00016438,2]
[322910651,1713493851430,-840.43,0.00016438,2]
[322910653,1713493851440,-1161.19,0.00016438,2]
[322910655,1713493851452,-500.0,0.00016438,2]
[322910657,1713493851461,-2739.64,0.00016438,2]
[322910659,1713493851471,-611.69418854,0.00016438,2]
[322910661,1713493851482,-1242.15,0.00016438,2]
[322910663,1713493851491,-662.41,0.00016438,2]
[322910665,1713493851501,-300.0,0.00016438,2]
[322910667,1713493851510,-300.0,0.00016438,2]
[322910669,1713493851520,-518.22935953,0.00016438,2]
[322910671,1713493851530,-500.0,0.00016438,2]
[322910672,1713493851540,-300.0,0.00016438,2]
[322910675,1713493851550,-300.0,0.00016438,2]
[322910677,1713493851560,-1038.48,0.00016438,2]
[322910679,1713493851574,-300.0,0.00016438,2]
[322910681,1713493851584,-500.0,0.00016438,2]
[322910683,1713493851593,-300.0,0.00016438,2]
[322910685,1713493851602,-358.41833311,0.00016438,2]
[322910687,1713493851614,-500.0,0.00016438,2]
[322910689,1713493851624,-500.0,0.00016438,2]
[322910691,1713493851633,-500.0,0.00016438,2]
[322910693,1713493851643,-500.0,0.00016438,2]
[322910696,1713493851670,-500.0,0.00016438,2]
[322910698,1713493851680,-500.0,0.00016438,2]
[322910700,1713493851689,-3492.57,0.00016438,2]
[322910702,1713493851700,-500.0,0.00016438,2]
[322910704,1713493851710,-500.0,0.00016438,2]